bitfinex-derivatives/quotes_SOLF0:USTF0_20220106
["timestamp","ask_amount","ask_price","bid_price","bid_amount"]
[1641429318278,4.0,154.43,154.34,20.34541784]
[1641429318978,31.66479,154.42,154.34,20.34541784]
[1641429319177,4.0,154.41,154.34,20.34541784]
[1641429319379,31.66479,154.42,154.34,20.34541784]
[1641429319578,27.66479,154.42,154.34,20.34541784]
[1641429319779,4.0,154.41,154.34,20.34541784]
[1641429320584,31.66479,154.42,154.34,20.34541784]
[1641429320781,27.66479,154.42,154.34,20.34541784]
[1641429321180,31.66479,154.42,154.34,20.34541784]
[1641429321383,27.66479,154.42,154.34,20.34541784]
[1641429321782,16.68100857,154.44,154.34,20.34541784]
[1641429323586,16.68100857,154.44,154.36,4.0]
[1641429323785,16.68100857,154.44,154.35,6.46809612]
[1641429323987,55.19479152,154.48,154.35,6.46809612]
[1641429324186,121.04159152,154.48,154.35,6.46809612]
[1641429324386,121.04159152,154.48,154.35,10.46809612]
[1641429324587,4.0,154.47,154.35,6.46809612]
[1641429324786,4.0,154.46,154.35,6.46809612]
[1641429324987,4.0,154.45,154.35,6.46809612]
[1641429325189,27.66479,154.44,154.35,6.46809612]
[1641429325988,27.66479,154.44,154.36,4.0]
[1641429326190,27.66479,154.44,154.35,10.46809612]
[1641429326589,27.66479,154.44,154.36,4.0]
[1641429326889,27.66479,154.44,154.35,6.46809612]
[1641429327091,27.66479,154.38,154.31,34.1347693]
[1641429327292,27.66479,154.38,154.31,27.66479]
[1641429328495,27.66479,154.38,154.28,64.3835]
[1641429328692,27.66479,154.38,154.27,27.66479]
[1641429328892,27.66479,154.38,154.29,6.47081662]
[1641429330594,31.66479,154.38,154.27,27.66479]
[1641429330796,4.0,154.37,154.27,27.66479]
[1641429330996,31.66479,154.38,154.27,27.66479]
[1641429331196,27.66479,154.38,154.27,27.66479]
[1641429331596,4.0,154.36,154.27,27.66479]
[1641429331897,4.0,154.34,154.27,27.66479]
[1641429332194,4.0,154.36,154.27,27.66479]
[1641429332595,4.0,154.36,154.25,27.66479]
[1641429332796,4.0,154.34,154.25,27.66479]
[1641429333499,4.0,154.33,154.25,27.66479]
[1641429334299,4.0,154.32,154.25,27.66479]
[1641429335000,4.0,154.32,154.2,10.47437765]
[1641429335001,4.0,154.32,154.21,36.61837767]
[1641429335200,31.66479,154.3,154.21,36.61837767]
[1641429335401,27.66479,154.3,154.21,36.61837767]
[1641429336004,27.66479,154.3,154.2,34.13916765]
[1641429336901,31.66479,154.3,154.2,34.13916765]
[1641429337102,4.0,154.29,154.21,6.53096357]
[1641429337503,4.0,154.28,154.21,6.53096357]
[1641429337903,15.78219224,154.29,154.21,6.53096357]
[1641429338104,11.78219224,154.29,154.21,6.53096357]
[1641429338903,11.78219224,154.29,154.2,27.66479]
[1641429339603,27.66479,154.3,154.2,27.66479]
[1641429339803,27.66479,154.3,154.21,6.53095604]
[1641429340403,27.66479,154.3,154.21,13.00491454]
[1641429341003,27.66479,154.3,154.22,36.61837767]
[1641429341202,27.66479,154.3,154.23,27.66479]
[1641429341603,66.4982,154.31,154.24,4.0]
[1641429342003,63.9,154.34,154.27,4.0]
[1641429342205,36.61837767,154.37,154.24,6.53095604]
[1641429342602,36.61837767,154.37,154.24,10.53095604]
[1641429343103,48.39459717,154.37,154.24,21.31176821]
[1641429343304,39.4410095,154.37,154.28,27.66479]
[1641429344104,4.0,154.34,154.24,53.93014588]
[1641429344304,4.0,154.34,154.24,47.39918984]
[1641429344506,4.0,154.33,154.28,13.73002323]
[1641429344804,4.0,154.34,154.28,13.73002323]
[1641429345004,4.0,154.33,154.28,13.73002323]
[1641429345205,27.66479,154.31,154.26,13.73002323]
[1641429346608,13.73002323,154.33,154.26,13.73002323]
[1641429347411,13.73002323,154.34,154.27,13.73002323]
[1641429347809,17.73002323,154.34,154.27,13.73002323]
[1641429348209,13.73002323,154.34,154.27,13.73002323]
[1641429348409,13.73002323,154.34,154.27,4.0]
[1641429348612,13.73002323,154.34,154.26,17.73002323]
[1641429349110,13.73002323,154.34,154.26,13.73002323]
[1641429349309,13.73002323,154.34,154.28,27.66479]
[1641429349610,13.73002323,154.35,154.28,41.39481323]
[1641429351512,13.73002323,154.35,154.28,13.73002323]
[1641429351715,13.73002323,154.34,154.26,13.73002323]
[1641429352813,76.06060605,154.37,154.25,13.73002323]
[1641429352814,13.73002323,154.32,154.25,13.73002323]
[1641429353413,13.73002323,154.32,154.29,27.66479]
[1641429353916,13.73002323,154.34,154.29,27.66479]
[1641429354713,13.73002323,154.34,154.3,1.30491014]
[1641429355713,13.73002323,154.35,154.28,13.73002323]
[1641429357913,17.00160942,154.35,154.28,13.73002323]
[1641429358713,17.00160942,154.36,154.28,13.73002323]
[1641429359714,17.00160942,154.36,154.3,27.66479]
[1641429359915,17.00160942,154.37,154.3,13.73002323]
[1641429360214,21.00160942,154.37,154.3,13.73002323]
[1641429360415,4.0,154.36,154.3,13.73002323]
[1641429360914,21.00160942,154.36,154.28,13.73002323]
[1641429361315,17.00160942,154.36,154.28,13.73002323]
[1641429361715,27.66479,154.35,154.28,13.73002323]
[1641429361915,44.66639942,154.35,154.27,21.56569897]
[1641429362715,44.66639942,154.35,154.27,15.03493337]
[1641429362916,17.00160942,154.34,154.27,1.30491014]
[1641429363616,17.00160942,154.34,154.3,4.57661381]
[1641429364817,13.73002323,154.36,154.32,4.57661381]
[1641429366721,13.73002323,154.34,154.3,4.57661381]
[1641429368224,13.73002323,154.35,154.31,4.57661381]
[1641429368923,13.73002323,154.34,154.3,4.57661381]
[1641429369827,13.73002323,154.35,154.3,4.57661381]
[1641429371128,13.73002323,154.35,154.31,4.57661381]
[1641429371829,3.27158619,154.35,154.32,4.57661381]
[1641429372730,13.73002323,154.35,154.31,4.57661381]
[1641429373731,3.27158619,154.37,154.33,4.57661381]
[1641429373732,17.00160942,154.37,154.33,4.57661381]
[1641429377134,17.00160942,154.37,154.33,1.381e-05]
[1641429377837,3.27158619,154.37,154.31,1.30491014]
[1641429378937,13.73002323,154.36,154.31,1.30491014]
[1641429379738,19.04462452,154.37,154.3,27.66479]
[1641429380539,16.9993666,154.36,154.31,1.30502404]
[1641429381445,19.04395513,154.37,154.3,27.66479]
[1641429382344,16.99877891,154.36,154.31,1.3050186]
[1641429383148,15.77303833,154.37,154.3,27.66479]
[1641429383748,4.0,154.36,154.3,27.66479]
[1641429383948,4.0,154.36,154.31,1.30475593]
[1641429384151,3.27108127,154.36,154.31,1.30475593]
[1641429384851,13.72751161,154.36,154.3,27.66479]
[1641429385652,64.0297,154.38,154.3,27.66479]
[1641429385852,3.27099781,154.37,154.31,1.30476984]
[1641429386651,13.72730294,154.38,154.33,6.46914219]
[1641429387151,12.56730294,154.38,154.32,4.0]
[1641429387352,10.56730294,154.38,154.31,11.77453984]
[1641429387752,36.61837767,154.41,154.31,11.77453984]
[1641429387753,36.61837767,154.41,154.31,7.77453984]
[1641429387950,69.6092,154.43,154.34,1.30476984]
[1641429388154,4.0,154.42,154.34,1.30476984]
[1641429388352,27.66479,154.41,154.34,1.30476984]
[1641429389354,3.27027691,154.4,154.34,1.30476984]
[1641429390155,3.27027691,154.4,154.33,27.66479]
[1641429391256,3.26954009,154.42,154.34,7.83474882]
[1641429392555,4.0,154.41,154.34,7.83474882]
[1641429393156,4.0,154.4,154.34,1.30501279]
[1641429393655,4.0,154.41,154.34,1.30501279]
[1641429394257,3.27005289,154.39,154.29,37.92339046]
[1641429394458,3.27005289,154.39,154.29,28.96980279]
[1641429394658,3.27005289,154.39,154.32,4.0]
[1641429394860,3.27005289,154.39,154.31,10.4699793]
[1641429395061,3.27005289,154.39,154.31,6.4699793]
[1641429395260,3.27005289,154.4,154.31,6.4699793]
[1641429396060,11.76854322,154.42,154.31,6.4699793]
[1641429396260,15.03769535,154.42,154.32,1.30501279]
[1641429396460,15.03769535,154.42,154.33,27.66479]
[1641429396861,19.03769535,154.42,154.33,27.66479]
[1641429397065,15.03769535,154.42,154.33,27.66479]
[1641429397261,15.03769535,154.42,154.34,7.83535441]
[1641429398063,15.03769535,154.42,154.34,5.30501279]
[1641429398464,15.03769535,154.42,154.37,27.66479]
[1641429398862,3.26915213,154.42,154.37,27.66479]
[1641429399864,92.31069,154.45,154.38,1.30501279]
[1641429400065,15.03401429,154.44,154.38,1.30501279]
[1641429400764,15.03401429,154.44,154.39,6.46663218]
[1641429401271,15.03401429,154.44,154.39,10.46663218]
[1641429401565,1.429e-05,154.44,154.4,4.0]
[1641429401766,36.61837767,154.47,154.4,4.0]
[1641429402167,36.61837767,154.51,154.4,4.0]
[1641429402367,4.0,154.5,154.39,6.46663218]
[1641429402568,4.0,154.5,154.44,27.66479]
[1641429402768,36.61837767,154.51,154.44,27.66479]
[1641429403967,40.61837767,154.51,154.44,27.66479]
[1641429404369,36.61837767,154.51,154.44,27.66479]
[1641429404568,68.28316767,154.52,154.44,27.66479]
[1641429404769,64.28316767,154.52,154.44,20.3490469]
[1641429404969,68.28316767,154.52,154.44,20.3490469]
[1641429405168,64.28316767,154.52,154.44,20.3490469]
[1641429405371,36.61837767,154.52,154.44,20.3490469]
[1641429405570,36.61837767,154.52,154.44,24.3490469]
[1641429405771,36.61837767,154.52,154.47,10.46328852]
[1641429406371,36.61837767,154.56,154.47,6.46328852]
[1641429406572,36.61837767,154.56,154.52,27.66479]
[1641429407774,36.61837767,154.6,154.52,27.66479]
[1641429408577,36.61837767,154.6,154.55,27.66479]
[1641429408775,36.61837767,154.61,154.55,27.66479]
[1641429410177,40.61837767,154.61,154.55,27.66479]
[1641429410377,36.61837767,154.61,154.55,27.66479]
[1641429411578,40.61837767,154.61,154.55,27.66479]
[1641429411778,40.61837767,154.61,154.52,27.66479]
[1641429411979,40.61837767,154.61,154.51,69.63931799]
[1641429412178,4.0,154.6,154.51,63.1777]
[1641429412384,4.0,154.6,154.47,36.61837767]
[1641429412580,27.66479,154.56,154.47,64.28316767]
[1641429412980,27.66479,154.56,154.47,27.66479]
[1641429413581,66.6568,154.57,154.47,27.66479]
[1641429413789,66.6568,154.57,154.47,34.12786966]
[1641429413983,66.6568,154.57,154.47,38.12786966]
[1641429414184,36.61837767,154.59,154.48,4.0]
[1641429414583,36.61837767,154.59,154.53,27.66479]
[1641429414984,4.0,154.6,154.47,64.28316767]
[1641429415187,36.61837767,154.62,154.47,64.28316767]
[1641429415188,4.0,154.59,154.47,64.28316767]
[1641429415385,4.0,154.6,154.47,64.28316767]
[1641429415585,4.0,154.59,154.47,64.28316767]
[1641429415787,63.9563,154.58,154.47,64.28316767]
[1641429415985,63.9563,154.58,154.47,27.66479]
[1641429416593,91.62109,154.58,154.5,27.66479]
[1641429417692,4.0,154.55,154.5,27.66479]
[1641429417888,4.0,154.57,154.47,27.66479]
[1641429418088,95.62109,154.58,154.47,27.66479]
[1641429418289,13.71146145,154.56,154.48,13.71146145]
[1641429418489,27.66479,154.55,154.48,13.71146145]
[1641429419388,13.71146145,154.55,154.51,4.0]
[1641429419591,36.61837767,154.58,154.54,4.0]
[1641429419788,36.61837767,154.58,154.51,6.46140923]
[1641429420189,36.61837767,154.58,154.48,24.0]
[1641429420390,36.61837767,154.58,154.47,45.37625145]
[1641429420588,36.61837767,154.58,154.5,27.66479]
[1641429420790,4.0,154.55,154.47,41.37625145]
[1641429420989,4.0,154.55,154.47,13.71146145]
[1641429421189,4.0,154.56,154.47,36.61837767]
[1641429421591,4.0,154.58,154.47,36.61837767]
[1641429421791,4.0,154.56,154.47,36.61837767]
[1641429421991,4.0,154.55,154.47,36.61837767]
[1641429422191,4.0,154.52,154.44,53.93475309]
[1641429422391,4.0,154.53,154.44,53.93475309]
[1641429422592,4.0,154.54,154.44,81.59954309]
[1641429423492,4.0,154.54,154.44,27.66479]
[1641429424096,27.66479,154.55,154.44,27.66479]
[1641429424695,27.66479,154.55,154.47,27.66479]
[1641429424993,4.0,154.54,154.47,27.66479]
[1641429425193,27.66479,154.55,154.47,27.66479]
[1641429425393,162.74867767,154.58,154.47,27.66479]
[1641429426293,162.74867767,154.58,154.47,38.12807852]
[1641429426694,162.74867767,154.58,154.53,27.66479]
[1641429426695,36.61837767,154.58,154.53,27.66479]
[1641429427093,66.4961,154.61,154.53,27.66479]
[1641429427393,4.0,154.56,154.51,62.8304]
[1641429427593,4.0,154.54,154.48,36.61837767]
[1641429428392,4.0,154.54,154.47,64.28316767]
[1641429429798,4.0,154.54,154.47,27.66479]
[1641429431001,63.7158,154.55,154.47,27.66479]
[1641429431201,67.7158,154.55,154.47,27.66479]
[1641429432702,36.61837767,154.57,154.47,27.66479]
[1641429432903,36.61837767,154.57,154.47,34.12807852]
[1641429433705,11.74551356,154.57,154.48,6.53570652]
[1641429434506,40.61837767,154.62,154.48,10.53570652]
[1641429434707,27.66479,154.6,154.52,27.66479]
[1641429436606,11.74240691,154.59,154.52,27.66479]
[1641429436809,15.74240691,154.59,154.52,27.66479]
[1641429437006,4.0,154.58,154.47,64.28316767]
[1641429437206,65.5904,154.58,154.47,64.28316767]
[1641429437408,69.5904,154.58,154.47,64.28316767]
[1641429437910,4.56972639,154.54,154.53,4.56972639]
[1641429439911,4.56972639,154.56,154.48,53.93369809]
[1641429440113,4.56972639,154.56,154.48,64.3965689]
[1641429440311,4.56972639,154.56,154.48,84.3965689]
[1641429440511,4.56972639,154.56,154.49,4.0]
[1641429440711,4.56972639,154.56,154.55,27.66479]
[1641429440912,4.56972639,154.57,154.55,27.66479]
[1641429442714,4.56972639,154.59,154.55,27.66479]
[1641429443015,4.56972639,154.59,154.56,1.30863407]
[1641429444015,4.56972639,154.57,154.56,5.87779442]
[1641429444817,4.56972639,154.57,154.56,4.56916035]
[1641429445616,4.56972639,154.57,154.56,6.035e-05]
[1641429445817,8.56972639,154.57,154.56,6.035e-05]
[1641429446017,8.56972639,154.57,154.49,36.61837767]
[1641429446216,4.0,154.56,154.49,36.61837767]
[1641429446416,4.0,154.55,154.49,36.61837767]
[1641429447219,4.0,154.55,154.48,27.66479]
[1641429447617,27.66479,154.57,154.48,27.66479]
[1641429447819,67.2648,154.57,154.48,27.66479]
[1641429448619,4.0,154.55,154.48,27.66479]
[1641429448819,27.66479,154.54,154.49,6.53465641]
[1641429449821,27.66479,154.56,154.48,27.66479]
[1641429449822,13.70967182,154.56,154.48,41.37446182]
[1641429451722,67.2648,154.57,154.5,13.70967182]
[1641429451922,71.2648,154.57,154.5,13.70967182]
[1641429452123,67.2648,154.57,154.5,13.70967182]
[1641429452522,67.2648,154.57,154.49,20.24428129]
[1641429452523,80.97447182,154.57,154.49,20.24428129]
[1641429452723,80.97447182,154.57,154.51,27.66479]
[1641429453325,67.2648,154.57,154.51,41.37446182]
[1641429454226,4.0,154.56,154.51,41.37446182]
[1641429454624,67.2648,154.57,154.52,20.24429068]
[1641429454825,4.0,154.58,154.52,20.24429068]
[1641429455026,4.0,154.57,154.52,20.24429068]
[1641429455225,4.0,154.58,154.52,20.24429068]
[1641429455626,4.0,154.56,154.52,20.24429068]
[1641429455827,4.0,154.56,154.51,13.70967182]
[1641429456531,17.70967182,154.59,154.51,13.70967182]
[1641429456728,17.70967182,154.59,154.52,27.66479]
[1641429456928,13.70967182,154.59,154.52,27.66479]
[1641429457129,4.0,154.57,154.51,13.70967182]
[1641429457332,4.0,154.57,154.49,3.65601945]
[1641429457333,4.0,154.52,154.49,6.53464765]
[1641429457529,4.0,154.5,154.47,47.39713932]
[1641429457730,4.0,154.48,154.43,55.19479152]
[1641429457931,4.0,154.47,154.43,55.19479152]
[1641429458330,4.0,154.45,154.43,55.19479152]
[1641429458531,4.0,154.49,154.43,55.19479152]
[1641429458731,65.4304,154.5,154.43,55.19479152]
[1641429458931,65.4304,154.5,154.41,36.57121005]
[1641429459730,4.0,154.49,154.41,36.57121005]
[1641429460131,69.4304,154.5,154.41,36.57121005]
[1641429460532,4.0,154.49,154.41,36.57121005]
[1641429460732,4.0,154.44,154.41,36.57121005]
[1641429461134,4.0,154.44,154.36,15.15608967]
[1641429461335,4.0,154.46,154.36,15.15608967]
[1641429462033,4.0,154.44,154.36,15.15608967]
[1641429462234,4.0,154.45,154.36,15.15608967]
[1641429462435,4.0,154.45,154.35,27.66479]
[1641429462633,4.0,154.46,154.35,27.66479]
[1641429463033,4.0,154.45,154.35,27.66479]
[1641429463234,4.0,154.46,154.35,27.66479]
[1641429463433,59.32958,154.47,154.35,27.66479]
[1641429463633,55.32958,154.47,154.35,27.66479]
[1641429463833,27.66479,154.47,154.35,27.66479]
[1641429464836,23.78721312,154.47,154.39,27.66479]
[1641429465639,123.7133,154.49,154.39,27.66479]
[1641429465840,65.4304,154.5,154.39,27.66479]
[1641429466039,65.4304,154.5,154.39,34.1312131]
[1641429466439,65.4304,154.5,154.4,4.0]
[1641429466839,65.4304,154.5,154.45,27.66479]
[1641429467238,27.66479,154.51,154.45,27.66479]
[1641429467640,6.4664231,154.57,154.45,27.66479]
[1641429468442,10.4664231,154.57,154.45,27.66479]
[1641429468741,4.0,154.56,154.48,27.66479]
[1641429469342,4.0,154.55,154.48,27.66479]
[1641429469543,4.0,154.54,154.45,27.66479]
[1641429469743,6.46767778,154.54,154.4,55.19479152]
[1641429470243,6.46767778,154.54,154.4,59.19479152]
[1641429470544,6.46767778,154.54,154.41,4.0]
[1641429470743,10.46684127,154.56,154.39,4.0]
[1641429470943,27.66479,154.54,154.46,27.66479]
[1641429471142,27.66479,154.54,154.43,27.66479]
[1641429471143,31.66479,154.54,154.43,27.66479]
[1641429471344,4.0,154.51,154.43,27.66479]
[1641429471543,31.66479,154.54,154.43,27.66479]
[1641429471744,4.0,154.53,154.43,27.66479]
[1641429472145,4.0,154.52,154.43,27.66479]
[1641429472446,4.0,154.53,154.43,27.66479]
[1641429473047,4.0,154.52,154.43,27.66479]
[1641429473246,4.0,154.53,154.43,27.66479]
[1641429473446,4.0,154.52,154.43,27.66479]
[1641429475046,4.0,154.51,154.43,27.66479]
[1641429476848,27.66479,154.49,154.43,27.66479]
[1641429477046,31.66479,154.49,154.43,27.66479]
[1641429477248,31.66479,154.49,154.36,67.76448985]
[1641429477446,70.0769,154.48,154.36,67.76448985]
[1641429477850,4.0,154.47,154.37,17.29042625]
[1641429478148,70.0769,154.48,154.37,17.29042625]
[1641429478551,66.0769,154.48,154.37,17.29042625]
[1641429478752,66.0769,154.48,154.37,21.29042625]
[1641429479051,27.66479,154.49,154.41,27.66479]
[1641429479253,4.0,154.48,154.41,27.66479]
[1641429479452,4.0,154.47,154.41,27.66479]
[1641429479653,4.0,154.48,154.41,27.66479]
[1641429479852,31.66479,154.49,154.41,27.66479]
[1641429480655,27.66479,154.49,154.41,27.66479]
[1641429481856,27.66479,154.49,154.42,6.5229685]
[1641429482658,31.66479,154.49,154.42,6.5229685]
[1641429483260,31.66479,154.49,154.41,27.66479]
[1641429484461,4.0,154.46,154.42,6.52300975]
[1641429485263,4.0,154.43,154.38,36.57891775]
[1641429485663,4.0,154.43,154.37,36.57891775]
[1641429485862,6.47123536,154.45,154.37,36.57891775]
[1641429486064,4.0,154.42,154.37,36.57891775]
[1641429486762,6.47123536,154.45,154.37,36.57891775]
[1641429486963,4.0,154.4,154.37,36.57891775]
[1641429487164,4.0,154.4,154.33,37.88134963]
[1641429487665,4.0,154.39,154.33,37.88134963]
[1641429487863,4.0,154.4,154.33,37.88134963]
[1641429488463,4.0,154.4,154.34,13.69678855]
[1641429488664,27.66479,154.42,154.34,13.69678855]
[1641429489665,4.0,154.41,154.34,13.69678855]
[1641429489864,4.0,154.4,154.34,13.69678855]
[1641429490466,4.0,154.39,154.34,13.69678855]
[1641429491766,4.0,154.39,154.36,13.69678855]
[1641429494070,31.66479,154.39,154.36,13.69678855]
[1641429495573,4.0,154.37,154.36,8.855e-05]
[1641429496876,4.0,154.37,154.32,37.88134963]
[1641429497078,4.0,154.34,154.31,1.30243188]
[1641429498180,27.66479,154.33,154.3,36.57891775]
[1641429498780,27.66479,154.33,154.29,3.66034378]
[1641429498980,31.66479,154.33,154.29,3.66034378]
[1641429499281,31.66479,154.33,154.26,36.57891775]
[1641429499481,4.0,154.32,154.26,36.57891775]
[1641429499681,4.0,154.3,154.26,36.57891775]
[1641429499882,4.0,154.29,154.23,36.57891775]
[1641429500082,4.0,154.29,154.23,40.23926153]
[1641429500282,27.66479,154.28,154.23,40.23926153]
[1641429501185,27.66479,154.28,154.23,3.66034378]
[1641429501785,27.66479,154.28,154.2,36.57891775]
[1641429502185,61.4132,154.32,154.24,27.66479]
[1641429502385,43.05434351,154.35,154.24,27.66479]
[1641429503187,6.47542576,154.35,154.24,27.66479]
[1641429503785,27.66479,154.36,154.24,27.66479]
[1641429504386,6.47542576,154.35,154.24,27.66479]
[1641429504786,6.47542576,154.35,154.24,64.24370775]
[1641429504988,4.0,154.34,154.24,36.57891775]
[1641429505184,27.66479,154.36,154.24,36.57891775]
[1641429505185,10.47668394,154.32,154.24,36.57891775]
[1641429505385,6.47857212,154.28,154.24,36.57891775]
[1641429505585,6.47857212,154.28,154.22,36.57891775]
[1641429506185,34.14336212,154.28,154.22,36.57891775]
[1641429506788,34.14336212,154.28,154.27,4.56906937]
[1641429507790,34.14336212,154.28,154.26,4.56906937]
[1641429508192,27.66479,154.28,154.26,4.56906937]
[1641429508690,27.66479,154.28,154.27,4.56906937]
[1641429509691,27.66479,154.28,154.2,46.74781473]
[1641429509892,27.66479,154.28,154.21,36.57891775]
[1641429511494,4.56906937,154.32,154.22,40.57891775]
[1641429512294,6.47647421,154.33,154.25,64.24370775]
[1641429512493,68.58996937,154.35,154.27,4.0]
[1641429512693,4.56906937,154.35,154.25,68.24370775]
[1641429512892,4.56906937,154.35,154.25,64.24370775]
[1641429513097,27.66479,154.36,154.34,4.56728826]
[1641429514393,27.66479,154.36,154.27,100.90171775]
[1641429514594,27.66479,154.36,154.25,55.32958]
[1641429514595,27.66479,154.36,154.29,36.57891775]
[1641429515696,27.66479,154.36,154.35,4.56714291]
[1641429517100,27.66479,154.36,154.34,4.56714291]
[1641429518603,32.24043586,154.36,154.35,4.56714291]
[1641429519304,32.24043586,154.36,154.28,36.57891775]
[1641429519305,4.57564586,154.36,154.3,4.0]
[1641429519503,6.47312037,154.41,154.26,20.91790056]
[1641429519504,4.57564586,154.37,154.31,4.0]
[1641429519704,6.47312037,154.41,154.31,4.0]
[1641429519904,6.47312037,154.41,154.32,4.0]
[1641429520305,6.47312037,154.41,154.33,36.57891775]
[1641429520504,6.47312037,154.41,154.33,40.57891775]
[1641429520706,6.47102598,154.46,154.38,27.66479]
[1641429520911,6.47102598,154.46,154.33,36.57891775]
[1641429521309,10.47102598,154.46,154.33,36.57891775]
[1641429521508,6.47186357,154.44,154.33,36.57891775]
[1641429521708,4.0,154.42,154.33,36.57891775]
[1641429522310,74.98225954,154.43,154.31,36.57891775]
[1641429522810,27.66479,154.4,154.31,36.57891775]
[1641429523410,27.66479,154.4,154.31,6.5085532]
[1641429523810,11.77525954,154.42,154.34,4.0]
[1641429524011,11.77525954,154.42,154.33,4.0]
[1641429524415,36.57891775,154.44,154.33,4.0]
[1641429524615,36.57891775,154.46,154.34,4.0]
[1641429524912,36.57891775,154.46,154.36,27.66479]
[1641429525312,36.57891775,154.46,154.37,4.0]
[1641429525512,36.57891775,154.46,154.38,4.0]
[1641429525716,36.57891775,154.46,154.36,27.66479]
[1641429526114,36.57891775,154.46,154.36,31.66479]
[1641429526317,13.71918499,154.45,154.37,20.22773819]
[1641429527718,13.71918499,154.46,154.38,13.71918499]
[1641429528117,13.71918499,154.46,154.41,4.0]
[1641429528517,13.71918499,154.46,154.43,4.0]
[1641429528717,64.24370775,154.5,154.45,4.0]
[1641429528918,64.24370775,154.5,154.43,31.66479]
[1641429529819,27.66479,154.5,154.43,31.66479]
[1641429530018,36.57891775,154.52,154.44,20.0]
[1641429530221,27.44489179,154.52,154.5,4.0]
[1641429530420,27.44489179,154.52,154.51,4.0]
[1641429530621,91.0,154.6,154.5,4.0]
[1641429530822,6.46391519,154.63,154.55,27.66479]
[1641429531223,4.0,154.58,154.44,21.27204452]
[1641429531421,4.0,154.56,154.44,17.27204452]
[1641429531621,67.6862,154.56,154.44,17.27204452]
[1641429532124,67.6862,154.56,154.44,21.27204452]
[1641429532523,67.6862,154.56,154.44,17.27204452]
[1641429532725,95.35099,154.56,154.48,27.66479]
[1641429534325,95.35099,154.56,154.45,27.66479]
[1641429534527,6.46705038,154.55,154.45,27.66479]
[1641429534926,95.35099,154.56,154.45,27.66479]
[1641429536827,95.35099,154.56,154.45,55.32958]
[1641429538030,99.35099,154.56,154.45,55.32958]
[1641429538230,99.35099,154.56,154.46,6.52233412]
[1641429538932,4.0,154.54,154.46,6.52233412]
[1641429539130,4.0,154.54,154.45,55.32958]
[1641429539333,15.03186458,154.55,154.46,1.30304244]
[1641429540134,4.0,154.54,154.46,1.30304244]
[1641429540936,4.0,154.54,154.48,27.66479]
[1641429541136,3.26842376,154.53,154.48,27.66479]
[1641429542338,3.26842376,154.53,154.45,27.66479]
[1641429542741,3.26842376,154.53,154.46,4.0]
[1641429542942,15.03186458,154.55,154.5,27.66479]
[1641429543941,15.03186458,154.59,154.5,27.66479]
[1641429544843,31.68648785,154.59,154.5,27.66479]
[1641429545641,31.68648785,154.59,154.5,31.66479]
[1641429546042,31.68648785,154.59,154.51,4.0]
[1641429546342,31.68648785,154.59,154.5,27.66479]
[1641429546742,31.68648785,154.59,154.5,31.66479]
[1641429547141,31.68648785,154.59,154.53,27.66479]
[1641429547341,3.26842376,154.61,154.53,27.66479]
[1641429547543,3.26842376,154.61,154.54,4.0]
[1641429547841,3.26842376,154.61,154.53,27.66479]
[1641429548341,3.26842376,154.61,154.53,31.66479]
[1641429548541,3.26842376,154.61,154.54,4.0]
[1641429548741,3.26842376,154.61,154.55,4.0]
[1641429548941,41.50409957,154.91,154.55,1.30407159]
[1641429548942,11.76346458,154.62,154.55,1.30407159]
[1641429549443,11.76346458,154.62,154.6,27.66479]
[1641429549641,11.76346458,154.62,154.55,1.30407159]
[1641429549843,11.76344082,154.62,154.51,6.46161799]
[1641429550145,4.0,154.65,154.54,6.52399732]
[1641429550342,4.0,154.66,154.54,6.52399732]
[1641429550542,6.46328852,154.64,154.54,6.52399732]
[1641429550944,65.9605,154.65,154.54,6.52399732]
[1641429551145,36.55164801,154.62,154.5,6.52399732]
[1641429551343,36.55164801,154.62,154.54,27.66479]
[1641429552746,52.31508883,154.62,154.54,27.66479]
[1641429553145,4.0,154.61,154.54,27.66479]
[1641429553343,48.31508883,154.62,154.54,27.66479]
[1641429553344,4.0,154.6,154.54,27.66479]